Cogmind - Beta 17 @@@ ROGUE MODE // 2026.08.18 @ 00:41:55 Player: THN-L0C Result: Destroyed by G-34 Mercenary with Small Laser Performance ------------- Evolutions (0) 0 Regions Visited (2) 400 Robots Destroyed (26) 130 Value Destroyed (631) 631 Prototype IDs (2) 40 Alien Tech Used (0) 0 Bonus (0) 0 TOTAL SCORE: 1201 Bonus ------- None Cogmind --------- Core Integrity 0/250 Matter 257/300 Energy 227/265 System Corruption 0% Temperature Cool (6) Movement Rolling (120) Ox2 Location -10/Subcaves Parts ------- > --- POWER (1) -------- Improved Ion Engine > --- PROPULSION (2) --- Armored Wheel Armored Wheel > --- UTILITY (2) ------ Improved Heat Sink High-capacity Storage Unit > --- WEAPON (2) ------- Particle Gun Particle Cannon > --- INVENTORY (20) --- Ion Engine Armored Wheel Large Storage Unit Large Battery (200) High-capacity Matter Pod (200) Improved Terrain Scanner Seismic Detector Medium Armor Plating Medium Armor Plating Medium Armor Plating Medium Armor Plating Field Recycling Unit (0) EM Shotgun EM Shotgun Particle Gun Particle Gun Particle Cannon Mining Laser Multitool Peak State ------------ > --- POWER ------------ Improved Ion Engine > --- PROPULSION ------- Armored Wheel Armored Wheel > --- UTILITY ---------- Improved Heat Sink High-capacity Storage Unit > --- WEAPON ----------- Particle Gun Particle Gun > --- INVENTORY -------- Ion Engine Armored Wheel Armored Wheel Large Storage Unit Large Battery High-capacity Matter Pod Improved Terrain Scanner Seismic Detector Medium Armor Plating Medium Armor Plating Medium Armor Plating Medium Armor Plating Field Recycling Unit EM Shotgun EM Shotgun Particle Gun Particle Cannon Particle Cannon Mining Laser [Rating: 17] Favorites ----------- Power Improved Ion Engine Engine Improved Ion Engine Propulsion Armored Wheel Wheel Armored Wheel Utility High-capacity Storage Unit Device Improved Terrain Scanner Storage High-capacity Storage Unit Protection Medium Armor Plating Weapon Particle Gun Energy Gun Particle Gun Energy Cannon Particle Cannon Special Weapon Mining Laser Build | -11 -10 -10 ------- Run | Yrd Mat Sub Slots Evolved . | . . . Power . | . . . Propulsion . | . . . Utility . | . . . Weapon . | . . . Parts Attached 22 | 7 10 5 Power 4 | 1 2 1 Engine 4 | 1 2 1 Core . | . . . Reactor . | . . . Propulsion 5 | 2 2 1 Treads . | . . . Leg . | . . . Wheel 5 | 2 2 1 Hover . | . . . Flight . | . . . Utility 6 | 2 3 1 Device 3 | 1 1 1 Storage 2 | 1 1 . Processor . | . . . Hackware . | . . . Protection 1 | . 1 . Artifact . | . . . Weapon 7 | 2 3 2 Energy Gun 5 | 2 2 1 Energy Cannon 1 | . . 1 Ballistic Gun . | . . . Ballistic Cannon . | . . . Launcher . | . . . Special Weapon 1 | . 1 . Impact Weapon . | . . . Slashing Weapon . | . . . Piercing Weapon . | . . . Special Melee Weapon . | . . . Unidentified Prototypes . | . . . Parts Lost 3 | . 1 2 Power . | . . . Propulsion 2 | . 1 1 Utility . | . . . Weapon 1 | . . 1 Highest Loss Streak 1 | . 1 1 To Critical Strikes . | . . . Average Backups 17 | . 15 19 Power . | . . 1 Propulsion 1 | . 1 1 Utility 9 | . 8 10 Weapon 5 | . 4 6 Tool/Special . | . . . Unused Backups 19 | . 5 14 Power 1 | . . 1 Propulsion 1 | . . 1 Utility 9 | . 2 7 Weapon 7 | . 3 4 Tool/Special 1 | . . 1 Average Slot Usage (%) 99 | . 99 99 Engine 14 | . 14 14 Wheel 27 | . 27 27 Device 14 | . 14 14 Storage 14 | . 14 14 Energy Gun 19 | . 27 14 Energy Cannon 2 | . . 3 Special Weapon 6 | . . 9 Peak Build Rating 17 | 7 16 17 Average Rating 15 | 5 13 16 On Entrance 7 | . 7 16 Avg Prop Armor Cover (%) . | . . . Naked Turns . | . . . Heaviest Build 55 | 15 52 55 Greatest Support 24 | 20 24 24 Greatest Overweight (x) 4 | 1 2 4 Average Overweight (x) 1 | . 1 2 Largest Inventory Capacity 20 | 8 20 20 Average Capacity 18 | 7 17 20 Most Carried 20 | 2 20 20 Average Carried 17 | . 15 19 Final Capacity 20 | 8 20 20 Final Carried 20 | 2 20 19 Class Distribution -------------------- 100% | Mutant Dominant Class ---------------- Mutant | -10/Materials Mutant | -10/Subcaves Resources | -11 -10 -10 ----------- Run | Yrd Mat Sub Matter Collected 671 | 270 325 76 Remotely . | . . . Salvage Created 1004 | 124 783 97 Parts 48 | 4 35 9 Haulers Intercepted 2 | . 2 . Recyclers Shooed . | . . . Parts Field Recycled . | . . . Retrieved Matter . | . . . Parts Self-Destructed 10 | . . 10 Prevented . | . . . Parts Restored . | . . . Kills | -11 -10 -10 ------- Run | Yrd Mat Sub Combat Hostiles Destroyed 18 | . 16 2 Guns 17 | . 15 2 Classes Destroyed 10 | 2 5 3 Builder 1 | . 1 . Tunneler 2 | 2 . . Hauler 2 | . 2 . Recycler 2 | 1 1 . Mechanic 1 | . 1 . Swarmer 3 | . 3 . Grunt 13 | . 13 . Sentry 1 | . . 1 Artisan 1 | . . 1 Subdweller 1 | . . 1 Best Kill Streak 4 | 2 4 1 Combat Bots Only 4 | . 4 1 Max Kills in Single Turn 2 | 1 2 1 Gunslinging 1 | . 1 . Exploded . | . . . Melee . | . . . Uniques/NPCs Destroyed . | . . . Combat | -11 -10 -10 -------- Run | Yrd Mat Sub Hostile Shots Fired 85 | . 62 23 Missed 23 | . 15 8 Hits 62 | . 47 15 Projectile 62 | . 47 15 Damage Taken 800 | . 558 242 Core 254 | . 187 67 Absorbed by Shields . | . . . Core Remaining (%) 100 | 100 . . Volleys Fired 92 | 5 62 25 Largest 2 | 2 2 2 Hottest 130 | 100 130 130 Shots Fired 161 | 10 113 38 Gun 147 | 10 109 28 Cannon 1 | . . 1 Launcher . | . . . Special 13 | . 4 9 Kinetic . | . . . Thermal 161 | 10 113 38 Explosive . | . . . Electromagnetic . | . . . Robot Hit Streak 17 | 8 11 17 Robot Miss Streak 3 | . 3 1 Penetration Max . | . . . Secondary Targets 1 | . 1 . Max Gunslinging Chain 1 | . 1 . Shots Hit Robots 99 | 8 67 24 Core Hits 39 | 4 30 5 Critical Kills . | . . . Critical Parts Destroyed . | . . . Critical Strikes 6 | . 6 . Burn 6 | . 6 . Melee Attacks . | . . . Impact . | . . . Slashing . | . . . Piercing . | . . . Sneak Attacks . | . . . Combat Hostiles . | . . . Follow-up Attacks . | . . . Damage Inflicted 1451 | 100 1003 348 Guns 1451 | 100 1003 348 Cannons . | . . . Explosions . | . . . Melee . | . . . Ramming . | . . . Kinetic . | . . . Thermal 1451 | 100 1003 348 Explosive . | . . . Electromagnetic . | . . . Impact . | . . . Slashing . | . . . Piercing . | . . . Highest Corruption . | . . . Average Corruption . | . . . Corruption Purged . | . . . Corruption Blocked . | . . . Overload Shots . | . . . Overflow Damage . | . . . Projectiles . | . . . Explosions . | . . . Melee . | . . . Knockbacks . | . . . Impact . | . . . Kinetic . | . . . Secondary . | . . . Self-Inflicted Damage . | . . . Shots . | . . . Rammed . | . . . Targets Rammed . | . . . Kicked . | . . . Crushed . | . . . Highest Temperature 477 | 78 477 12 Average Temperature 82 | 39 88 8 Received Heat Transfer 360 | . 270 90 Effects 6 | . 6 . Shutdowns 1 | . 1 . Energy Bleed 1 | . 1 . Interference 4 | . 4 . Siege Activations . | . . . Martial Activations . | . . . Shielding Activations . | . . . Robots Disrupted . | . . . Combat Hostiles . | . . . Robots Corrupted . | . . . Combat Hostiles . | . . . Parts Fried . | . . . Impact Corruptions . | . . . Robots Melted 1 | . 1 . Combat Hostiles 1 | . 1 . Parts Melted 8 | . 8 . Heat Transferred 4070 | 296 2960 814 Parts Sabotaged . | . . . Parts Stolen . | . . . Parts Stripped . | . . . Power Chain Reactions . | . . . Alert | -11 -10 -10 ------- Run | Yrd Mat Sub Maximum Alert Level . | . . . Low Security (%) 100 | 100 100 . Level 1 . | . . . Level 2 . | . . . Level 3 . | . . . Level 4 . | . . . Level 5 . | . . . High Security . | . . . Max Security . | . . . Peak Influence 132 | 10 132 . Initial 3 | . 3 . Average 35 | 1 37 . Influence Increases 507 | 15 472 20 Destroy 0b10 Robot/C 340 | . 320 20 Destroy 0b10 Robot/NC 40 | 15 25 . Destroy Leader 74 | . 74 . Successful Hack 15 | . 15 . Destroy Structure 8 | . 8 . Lose Combat Pursuer 30 | . 30 . Influence Decreases 507 | 10 477 20 Entered New Map 2 | . 2 . Time Decay 495 | 10 465 20 Lost Part 10 | . 10 . Squads Dispatched 5 | . 5 . Investigation 4 | . 4 . Extermination . | . . . Reinforcement 1 | . 1 . Assault . | . . . Garrison . | . . . Intercept . | . . . Searches Triggered . | . . . Construction Impeded . | . . . Haulers Reinforced . | . . . Active Scanning Responses . | . . . Cargo Convoy Interrupts . | . . . Stealth | -11 -10 -10 --------- Run | Yrd Mat Sub Distress Signals 5 | . 5 . Communications Jammed . | . . . Distress Signals . | . . . Times Spotted 34 | . 30 4 Peak Tracking Total 4 | . 4 2 Tactical Retreats 1 | . 1 . Traps | -11 -10 -10 ------- Run | Yrd Mat Sub Traps Triggered 3 | . 3 . Indirectly . | . . . Trap Hack Attempts . | . . . Triggered . | . . . Disarmed . | . . . Reprogrammed . | . . . Reused . | . . . Traps Extracted . | . . . Installed . | . . . Triggered . | . . . Machines | -11 -10 -10 ---------- Run | Yrd Mat Sub Machines Disabled 1 | . 1 . Max in Single Turn 1 | . 1 . Machines Repaired . | . . . Machines Dismantled . | . . . Machines Sabotaged . | . . . Overloaded Fab Kills . | . . . Hacking | -11 -10 -10 --------- Run | Yrd Mat Sub Machines Accessed 6 | . 6 . Terminals 5 | . 5 . Fabricators . | . . . Repair Stations 1 | . 1 . Recycling Units . | . . . Scanalyzers . | . . . Garrison Access . | . . . Total Hacks 22 | . 22 . Successful 12 | . 12 . Failed 9 | . 9 . Catastrophic . | . . . Database Lockouts 1 | . 1 . Manual 20 | . 20 . Terminals 21 | . 21 . Fabricators . | . . . Repair Stations 1 | . 1 . Recycling Units . | . . . Scanalyzers . | . . . Garrison Access . | . . . Terminal Hacks 2 | . 2 . Robot Analysis 1 | . 1 . Prototype ID Bank 1 | . 1 . Fabricator Hacks . | . . . Repair Station Hacks . | . . . Recycling Unit Hacks . | . . . Scanalyzer . | . . . Garrison Access Hacks . | . . . Unauthorized Hacks 10 | . 10 . Terminals 9 | . 9 . Botnet 4 | . 4 . Skim 5 | . 5 . Fabricators . | . . . Repair Stations 1 | . 1 . Patch 1 | . 1 . Recycling Units . | . . . Scanalyzers . | . . . Garrison Access . | . . . Data Cores Recovered . | . . . Used . | . . . Hacking Detections 4 | . 4 . Full Trace Events . | . . . Feedback Events . | . . . Feedback Blocked . | . . . Robot Schematics Acquired . | . . . Robots Built . | . . . Authchips . | . . . Time . | . . . Total Robot Build Rating . | . . . Part Schematics Acquired . | . . . Parts Built . | . . . Authchips . | . . . Time . | . . . Total Part Build Rating . | . . . Part Studies Acquired . | . . . Parts Repaired . | . . . Time . | . . . Parts Recycled . | . . . Recycled Matter . | . . . Retrieved Matter . | . . . Retrieved Components . | . . . Parts Scanalyzed . | . . . Part Schematics Acquired . | . . . Parts Damaged . | . . . Bothacking | -11 -10 -10 ------------ Run | Yrd Mat Sub Used RIF Installer . | . . . Robots Hacked . | . . . Non-combat . | . . . Combat . | . . . Robot Hacks Applied . | . . . Relay Couplers Released . | . . . Fabnet Peak Effective % . | . . . Robots Rewired . | . . . Allies Hacked . | . . . Hacks Repelled . | . . . Allies | -11 -10 -10 -------- Run | Yrd Mat Sub Total Allies . | . . . Largest Group . | . . . Highest-Rated Group . | . . . Highest-Rated Ally . | . . . Total Orders . | . . . Ally Attacks . | . . . Total Damage . | . . . Kills . | . . . Allies Corrupted . | . . . Allies Melted . | . . . Intel | -11 -10 -10 ------- Run | Yrd Mat Sub Active Infowar (turns) 3241 | 32 274 2935 Terrain 2709 | . . 2709 Seismic 532 | 32 274 226 Robot Analysis Total 1 | . 1 . Derelict Logs Recovered . | . . . Drone Launches . | . . . Drone Recoveries . | . . . Exploration | -11 -10 -10 ------------- Run | Yrd Mat Sub Turns Passed 4861 | 75 1714 3072 Spaces Moved 1212 | 59 865 288 Core 9 | 9 . . Treads . | . . . Legs . | . . . Wheels 1203 | 50 865 288 Hover . | . . . Flight . | . . . Fastest Speed 50 | 50 80 120 Average Speed 108 | 75 107 120 Slowest Speed 150 | 95 120 150 Overloaded Moves . | . . . Propulsion Burnouts . | . . . Robots Hopped . | . . . Potential Cave-ins . | . . . Cave-ins Triggered . | . . . Exploration Rate (%) 40 | 4 99 18 Regions Visited 2 Branch Regions 1 Pre-discovered Areas 2 | . 2 . Known Exits Taken . | . . . Unknown Exits Taken 2 | 1 1 . Scrap Searched . | . . . Spaces Dug 3 | . 3 . Terrain Destroyed 4 | . 4 . Melee . | . . . Projectile 4 | . 4 . AOE . | . . . Terrain Rammed . | . . . Walls Destroyed . | . . . Machines Disabled . | . . . Actions | -11 -10 -10 --------- Run | Yrd Mat Sub Total 4562 | 75 1534 2953 Wait 3190 | 3 561 2626 Move 1210 | 58 864 288 Hop . | . . . Pick Up 26 | 2 23 1 Fast Attach 8 | 7 1 . Attach 2 | . . 2 Detach . | . . . Swap 22 | . 12 10 Drop 12 | . 11 1 Fire 92 | 5 62 25 Melee . | . . . Ram . | . . . Kick . | . . . Crush . | . . . Escape Stasis . | . . . Rewire . | . . . Trap . | . . . Miscellaneous . | . . . Route ------- -11/Scrapyard -10/Materials (discovered 6 exits: [*Mat x3] / [*Min x2] / [*Sub]) -10/Subcaves (discovered 1 exit: [*Mat]) History --------- Turn | Location | Event 26 | -11/Scrapyard | Discovered new exit (range 15) 76 | -11/Scrapyard | Entered Materials 110 | -10/Materials | Discovered new exit (range 16) 226 | -10/Materials | Discovered new exit (range 10) 324 | -10/Materials | Build established: Mutant 356 | -10/Materials | Central database locked down 395 | -10/Materials | Discovered new exit (range 15) 777 | -10/Materials | Discovered new exit (range 8) 840 | -10/Materials | Core integrity fell below 50% 971 | -10/Materials | Discovered new exit (range 10) 1157 | -10/Materials | Discovered new exit (range 16) 1335 | -10/Materials | Learned location of 1 exit from Recycling 1380 | -10/Materials | Learned 4 Recycling zone layouts 1437 | -10/Materials | Learned Materials stockpile data 1477 | -10/Materials | Learned Materials stockpile data 1515 | -10/Materials | Learned location of 1 exit from Recycling 1621 | -10/Materials | Learned 4 Recycling zone layouts 1790 | -10/Materials | Entered Subcaves 1796 | -10/Subcaves | Core integrity fell below 20% 1983 | -10/Subcaves | Discovered new exit (range 5) 3133 | -10/Subcaves | A swath of the cavern ceiling suddenly collapsed 4862 | -10/Subcaves | Destroyed by G-34 Mercenary with Small Laser Last Messages --------------- 01812_ Subatomizers dissect the Ion Engine. 01878_ VY-8M7(u) builds Twisted Machinery. 01889_ VY-8M7(u) cries out in pain. 01889_ VY-8M7(u) destroyed. 01890_ KI-FKK(R) angrily emerges from the Twisted Machinery. 01890_ KI-FKK(R): "WEHOME!" 01897_ Acquired Multitool. 01898_ Acquired 20 matter. 01900_ Subatomizers dissect the Wheel. 01901_ Acquired 9 matter. 01914_ Subatomizers dissect the Wheel. 01923_ Arm. Wheel destroyed. 01925_ Subatomizers dissect the Wheel. 01938_ KI-FKK(R) destroyed. 01983_ EXIT=FOUND 02394_ Acquired 13 matter. 02403_ Subatomizers dissect the Lgt. Ion Engine. 02418_ Subatomizers dissect the Lgt. Ion Engine, destroying it. A swath of the cavern ceiling suddenly collapses. 04471_ Acquired 24 matter. Map ----- +----------------------------------------------------+ | ?????????????????????????????????????????????????? | | ?????????????????????????????????????????????????? | | ?????????????????????????????????????????????????? | | ?????????????????????????????????????????????????? | | ?????????????????????????????????????????????????? | | ?????????????????????????????????????????????????? | | ?????????????????????????????????????????????????? | | ?????????????????????????????????????????????????? | | ?????????????????????????????????????????????????? | | ?????????????????????????????????????????????????? | | ????????????????????#?#?##?#?????????????????????? | | ?????????????????????#??##?????##????????????????? | | ??????????????????#????#????????#????????????????? | | ???????????????? ??????##??#????##?#?????????????? | | ?????????????????????????#?????#???#?????????????? | | ????????????? ????##??##??????##????#????????????? | | ????????????? ??#?#???#???#??????#?#??#??????????? | | ???????????? ##???#???????#??#?#???????????????? | | ????????????? ?###??#?##???????#?????????????????? | | ???????????? ???????#??#?????#??###??????????????? | | ???????????????????#???##????#?#???#?#?#?????????? | | ???????????????#?????#??##??#????????????????????? | | ??????????? ?????###??#??#######?????????????????? | | ???????????? ?#?#???#?#### ####?#???#??#????????? | | ?????????? ???# ???#????# ######??????????????? | | ????????? ??#? ?????#??#@ ## #???#??????????? | | ????????????????????#??### % #??#??#????????? | | ?????????? ???##??????### #######????????? | | ?????????? ? ?#??####?#### #????#????????? | | ??????????????? ???###?##?### #?#???????????? | | ???????????? ??????##?#??? ?## ##?#??????????? | | ?????????????? ?? #??#??# ??## #????????????? | | ??????????? ?????#????# ##gg ###??????????? | | ?????????????? ?????#??## #???????????? | | ??????????????? ????#????# #???????????? | | ???????????????? ?????### ### ##???????????? | | ??????????????? ? ?#? #### ##???????????? | | ????????????????? ??# #??# #???????????? | | ????????????????????# ## #### ##???????????? | | ??????????????????### ??# #?## ##??????????? | | ??????????????????# ## #?# ##?????????? | | ???????????# ? ???? ## #?# #?????????? | | ????###?##?#? ??? ? #?# #?????????? | | ???###??###?# ??? ??# ##?????????? | | #?##?##??### ? ?# ??#### ###??????????? | | ??#??##?#??? ? #? ?### #?## # #???????????? | | ###?##?##??? ###? ## #?# #???????????? | | #??# ?#??# ? ??####### #?## # ##???????????? | | ???# ?## ??##### #???# ####????????????? | | #### ?#??#?## #??## ##????????????? | +----------------------------------------------------+ Best States ------------- Heat Dissipation 39 Energy Generation 12 Energy Capacity 265 Matter Stores 300 Matter Capacity 300 Sight Range 16 Terrain Scan Range 16 Terrain Scan Density 10 Evasion (%) 44 Item Schematics ----------------- None Robot Schematics ------------------ None Fabricated ------------ Nothing Repaired ---------- Nothing Studied --------- None Alien Tech Used ----------------- None Achievements -------------- None Challenges ------------ None Game ------ Seed BlanketSeismicFrame Manual? 0 Play Time 00:16:01 Cumulative 445.5 hours Start 2026.08.18 @ 00:26:58 End 2026.08.18 @ 00:41:55 Sessions 1 Manual Loads 0 Difficulty Rogue Special Mode None Game No. 333 Rogue 333 Adventurer 0 Explorer 0 Win Type - Total 9 Types 4/0/3/2/0/0/0/0/0/0 Lore% 78 Gallery% 74 Achievement% 56 Wizard Run 0 Options --------- Layout 2 ASCII 0 Keyboard 1 Movement Vi Keybinds 0 Fullscreen 2 Font 32/SmallcapsGlow Map View 77x44 Zoom Use 0% Tactical HUD 1 Map Filters NONE Filters NONE Steam 1 RUN: 1b3baca7-9e0f-4daa-ac77-68b01df5eec2